[Event "*** SCC Grand Prix: Titled Tuesday Blitz"]
[Site "Chess.com"]
[Date "2020.06.02"]
[Round "5"]
[White "Vandros57"]
[Black "angryhorse9"]
[Result "1/2-1/2"]
[WhiteElo "2239"]
[BlackElo "2434"]
[TimeControl "180+1"]
[EndTime "11:00:10 PDT"]
[Termination "Game drawn by stalemate"]

1. d4 {[%clk 0:03:00.9]} 1... Nf6 {[%clk 0:02:59]} 2. Nf3 {[%clk 0:02:58.9]}
2... g6 {[%clk 0:02:59.3]} 3. c4 {[%clk 0:02:58]} 3... Bg7 {[%clk 0:02:59.6]} 4.
Nc3 {[%clk 0:02:56.9]} 4... O-O {[%clk 0:03:00.5]} 5. e4 {[%clk 0:02:56.2]} 5...
d6 {[%clk 0:03:01]} 6. Be2 {[%clk 0:02:55.4]} 6... e5 {[%clk 0:03:01.5]} 7. dxe5
{[%clk 0:02:54.6]} 7... dxe5 {[%clk 0:03:00.9]} 8. Qxd8 {[%clk 0:02:53.5]} 8...
Rxd8 {[%clk 0:03:01.8]} 9. Bg5 {[%clk 0:02:52.4]} 9... Re8 {[%clk 0:03:01.7]}
10. O-O-O {[%clk 0:02:50.4]} 10... h6 {[%clk 0:02:59.4]} 11. Bxf6 {[%clk
0:02:45.4]} 11... Bxf6 {[%clk 0:02:59.6]} 12. Nd5 {[%clk 0:02:07.6]} 12... Bd8
{[%clk 0:02:57.7]} 13. Nxe5 {[%clk 0:02:01.7]} 13... c6 {[%clk 0:02:44]} 14. Nc3
{[%clk 0:01:52.3]} 14... Bg5+ {[%clk 0:02:42.5]} 15. Kc2 {[%clk 0:01:36.9]}
15... Rxe5 {[%clk 0:02:38.9]} 16. f4 {[%clk 0:01:35.5]} 16... Re8 {[%clk
0:02:29.5]} 17. fxg5 {[%clk 0:01:34]} 17... hxg5 {[%clk 0:02:30.4]} 18. h3
{[%clk 0:01:24.3]} 18... Nd7 {[%clk 0:02:29.8]} 19. Bg4 {[%clk 0:01:22.8]} 19...
Ne5 {[%clk 0:02:21.8]} 20. Bxc8 {[%clk 0:01:21.9]} 20... Raxc8 {[%clk
0:02:22.6]} 21. Rhf1 {[%clk 0:01:17.7]} 21... Rcd8 {[%clk 0:02:20.1]} 22. Rxd8
{[%clk 0:01:14.2]} 22... Rxd8 {[%clk 0:02:20]} 23. b3 {[%clk 0:01:13.2]} 23...
Kf8 {[%clk 0:02:15.7]} 24. Rd1 {[%clk 0:01:12.2]} 24... Re8 {[%clk 0:02:16.1]}
25. Kd2 {[%clk 0:01:06.2]} 25... Ke7 {[%clk 0:02:15.7]} 26. Ke3 {[%clk
0:01:05.9]} 26... Rh8 {[%clk 0:02:15.5]} 27. c5 {[%clk 0:01:02.7]} 27... f6
{[%clk 0:02:11.7]} 28. a4 {[%clk 0:01:00.8]} 28... g4 {[%clk 0:02:11]} 29. hxg4
{[%clk 0:00:58.7]} 29... Nxg4+ {[%clk 0:02:11.8]} 30. Kf4 {[%clk 0:00:58]} 30...
Ne5 {[%clk 0:02:12.2]} 31. Rd6 {[%clk 0:00:53]} 31... Rh1 {[%clk 0:02:07.8]} 32.
Ne2 {[%clk 0:00:52.1]} 32... Re1 {[%clk 0:01:37.7]} 33. Nd4 {[%clk 0:00:50.9]}
33... g5+ {[%clk 0:01:16.3]} 34. Kg3 {[%clk 0:00:38.1]} 34... Rxe4 {[%clk
0:01:14.6]} 35. Nf5+ {[%clk 0:00:37.3]} 35... Kf7 {[%clk 0:01:01.1]} 36. Rd8
{[%clk 0:00:35.5]} 36... Rg4+ {[%clk 0:00:58.3]} 37. Kh3 {[%clk 0:00:33.3]}
37... Rf4 {[%clk 0:00:46.2]} 38. Nd6+ {[%clk 0:00:31.9]} 38... Ke7 {[%clk
0:00:46.7]} 39. Rb8 {[%clk 0:00:31.1]} 39... Rb4 {[%clk 0:00:40.4]} 40. Rxb7+
{[%clk 0:00:30.2]} 40... Rxb7 {[%clk 0:00:40.3]} 41. Nxb7 {[%clk 0:00:30.3]}
41... f5 {[%clk 0:00:37.4]} 42. g3 {[%clk 0:00:29.4]} 42... Nd3 {[%clk 0:00:34]}
43. Kg2 {[%clk 0:00:24.3]} 43... Nc1 {[%clk 0:00:31.3]} 44. b4 {[%clk
0:00:22.8]} 44... Nd3 {[%clk 0:00:28.4]} 45. b5 {[%clk 0:00:22.4]} 45... Kd7
{[%clk 0:00:26.5]} 46. Na5 {[%clk 0:00:20.4]} 46... cxb5 {[%clk 0:00:25]} 47.
c6+ {[%clk 0:00:20.1]} 47... Kc7 {[%clk 0:00:22]} 48. axb5 {[%clk 0:00:20]}
48... g4 {[%clk 0:00:22.5]} 49. Kf1 {[%clk 0:00:19]} 49... Nc5 {[%clk
0:00:22.8]} 50. Nc4 {[%clk 0:00:18.1]} 50... Ne4 {[%clk 0:00:22.3]} 51. Kg2
{[%clk 0:00:16.9]} 51... Nd6 {[%clk 0:00:22.5]} 52. Nxd6 {[%clk 0:00:15.4]}
52... Kxd6 {[%clk 0:00:23.4]} 53. Kf2 {[%clk 0:00:15.2]} 53... a6 {[%clk
0:00:23.5]} 54. bxa6 {[%clk 0:00:14.4]} 54... Kxc6 {[%clk 0:00:24.1]} 55. Ke3
{[%clk 0:00:14.5]} 55... Kb6 {[%clk 0:00:24.5]} 56. Kf4 {[%clk 0:00:14.4]} 56...
Kxa6 {[%clk 0:00:25.3]} 57. Kxf5 {[%clk 0:00:14.5]} 57... Kb6 {[%clk 0:00:26.2]}
58. Kxg4 {[%clk 0:00:14.6]} 58... Kc7 {[%clk 0:00:27.1]} 59. Kf5 {[%clk
0:00:14.9]} 59... Kd8 {[%clk 0:00:28]} 60. Kf6 {[%clk 0:00:15]} 60... Ke8 {[%clk
0:00:28.9]} 61. g4 {[%clk 0:00:15.2]} 61... Kf8 {[%clk 0:00:29.8]} 62. g5 {[%clk
0:00:15.3]} 62... Kg8 {[%clk 0:00:30.3]} 63. Kg6 {[%clk 0:00:13.9]} 63... Kh8
{[%clk 0:00:26.4]} 64. Kh6 {[%clk 0:00:13.1]} 64... Kg8 {[%clk 0:00:26.4]} 65.
g6 {[%clk 0:00:12.8]} 65... Kh8 {[%clk 0:00:26.4]} 66. g7+ {[%clk 0:00:05]}
66... Kg8 {[%clk 0:00:26.6]} 67. Kg6 {[%clk 0:00:04.3]} 1/2-1/2

[Event "*** SCC Grand Prix: Titled Tuesday Blitz"]
[Site "Chess.com"]
[Date "2020.06.02"]
[Round "5"]
[White "Matveev_Vladimir"]
[Black "PavelChernomordik"]
[Result "1-0"]
[WhiteElo "2572"]
[BlackElo "2247"]
[TimeControl "180+1"]
[EndTime "11:00:11 PDT"]
[Termination "Matveev_Vladimir won on time"]

1. d4 {[%clk 0:03:00.9]} 1... d5 {[%clk 0:02:57.4]} 2. c4 {[%clk 0:03:00.8]}
2... Nc6 {[%clk 0:02:57]} 3. Nf3 {[%clk 0:03:00.7]} 3... Bg4 {[%clk 0:02:55]} 4.
Nc3 {[%clk 0:03:00.6]} 4... Bxf3 {[%clk 0:02:53.5]} 5. gxf3 {[%clk 0:02:59.6]}
5... e6 {[%clk 0:02:51.3]} 6. a3 {[%clk 0:02:50.7]} 6... Nge7 {[%clk 0:02:49.1]}
7. e3 {[%clk 0:02:36.9]} 7... g6 {[%clk 0:02:45.2]} 8. b4 {[%clk 0:02:33.1]}
8... Bg7 {[%clk 0:02:41.3]} 9. f4 {[%clk 0:02:31]} 9... O-O {[%clk 0:02:38.4]}
10. h4 {[%clk 0:02:27.8]} 10... h5 {[%clk 0:02:34.2]} 11. Bd3 {[%clk 0:02:06.9]}
11... dxc4 {[%clk 0:02:31.8]} 12. Bxc4 {[%clk 0:02:02.5]} 12... Nf5 {[%clk
0:02:31.7]} 13. Ne4 {[%clk 0:01:28]} 13... a5 {[%clk 0:02:16.6]} 14. b5 {[%clk
0:01:25.6]} 14... Nce7 {[%clk 0:02:16.6]} 15. Bb2 {[%clk 0:01:17.6]} 15... Nd5
{[%clk 0:02:14.2]} 16. Ng5 {[%clk 0:01:16.4]} 16... Nb6 {[%clk 0:02:10.5]} 17.
Be2 {[%clk 0:01:15.3]} 17... c5 {[%clk 0:02:01.4]} 18. bxc6 {[%clk 0:01:14.2]}
18... bxc6 {[%clk 0:02:00.5]} 19. Bxh5 {[%clk 0:01:13.2]} 19... gxh5 {[%clk
0:01:53.9]} 20. Qxh5 {[%clk 0:01:14.1]} 20... Nh6 {[%clk 0:01:52.2]} 21. Rg1
{[%clk 0:01:13.4]} 21... Nc4 {[%clk 0:01:40.8]} 22. Nxe6 {[%clk 0:01:02.6]}
22... fxe6 {[%clk 0:01:39.4]} 23. Qxh6 {[%clk 0:01:02.6]} 23... Qf6 {[%clk
0:01:38]} 24. Rxg7+ {[%clk 0:00:43.6]} 24... Qxg7 {[%clk 0:01:34.1]} 25. Qxe6+
{[%clk 0:00:43.6]} 25... Qf7 {[%clk 0:01:30.5]} 26. Qg4+ {[%clk 0:00:42.8]}
26... Kh7 {[%clk 0:01:28.9]} 27. Bc3 {[%clk 0:00:41.5]} 27... Rg8 {[%clk
0:01:27.4]} 28. Qf3 {[%clk 0:00:41.4]} 28... Rg1+ {[%clk 0:01:18.3]} 29. Ke2
{[%clk 0:00:41.1]} 29... Rxa1 {[%clk 0:01:18.2]} 30. Bxa1 {[%clk 0:00:42]} 30...
Nxa3 {[%clk 0:01:05.7]} 31. Qxc6 {[%clk 0:00:31]} 31... Qc4+ {[%clk 0:01:03.5]}
32. Qxc4 {[%clk 0:00:28.6]} 32... Nxc4 {[%clk 0:01:02.8]} 33. Kd3 {[%clk
0:00:26.9]} 33... Nd6 {[%clk 0:00:54.1]} 34. e4 {[%clk 0:00:27]} 34... Kg6
{[%clk 0:00:49.8]} 35. e5 {[%clk 0:00:20.3]} 35... Nf5 {[%clk 0:00:48]} 36. Ke4
{[%clk 0:00:20.8]} 36... Nxh4 {[%clk 0:00:43.9]} 37. d5 {[%clk 0:00:20.9]} 37...
Nf5 {[%clk 0:00:43]} 38. d6 {[%clk 0:00:21.2]} 38... Rd8 {[%clk 0:00:38.4]} 39.
Kd5 {[%clk 0:00:21]} 39... Kf7 {[%clk 0:00:30.1]} 40. e6+ {[%clk 0:00:17.9]}
40... Ke8 {[%clk 0:00:28.5]} 41. Be5 {[%clk 0:00:17.9]} 41... Nxd6 {[%clk
0:00:23.1]} 42. Bxd6 {[%clk 0:00:17.5]} 42... a4 {[%clk 0:00:23.4]} 43. f5
{[%clk 0:00:17.5]} 43... a3 {[%clk 0:00:21.4]} 44. f6 {[%clk 0:00:17.7]} 44...
Rxd6+ {[%clk 0:00:18.1]} 45. Kxd6 {[%clk 0:00:18.6]} 45... a2 {[%clk 0:00:17.4]}
46. f7+ {[%clk 0:00:17.4]} 46... Kf8 {[%clk 0:00:16.5]} 47. Kd7 {[%clk
0:00:17.8]} 47... a1=Q {[%clk 0:00:14.7]} 48. e7+ {[%clk 0:00:18.7]} 48... Kxf7
{[%clk 0:00:13.5]} 49. e8=Q+ {[%clk 0:00:19.6]} 49... Kg7 {[%clk 0:00:12.3]} 50.
Qe7+ {[%clk 0:00:18.8]} 50... Kg6 {[%clk 0:00:09.9]} 51. Qe4+ {[%clk 0:00:18.8]}
51... Kg7 {[%clk 0:00:07.9]} 52. f4 {[%clk 0:00:16.9]} 52... Qa7+ {[%clk
0:00:05.9]} 53. Ke6 {[%clk 0:00:17]} 53... Qb6+ {[%clk 0:00:05.1]} 54. Kf5
{[%clk 0:00:16.7]} 54... Qc5+ {[%clk 0:00:03.9]} 55. Qe5+ {[%clk 0:00:16.5]}
55... Qxe5+ {[%clk 0:00:02.3]} 56. Kxe5 {[%clk 0:00:17.4]} 56... Kf7 {[%clk
0:00:01]} 57. Kf5 {[%clk 0:00:17.5]} 1-0

[Event "*** SCC Grand Prix: Titled Tuesday Blitz"]
[Site "Chess.com"]
[Date "2020.06.02"]
[Round "5"]
[White "Sweafty"]
[Black "fischercapa"]
[Result "1/2-1/2"]
[WhiteElo "2505"]
[BlackElo "2370"]
[TimeControl "180+1"]
[EndTime "11:00:12 PDT"]
[Termination "Game drawn - insufficient material"]

1. Nf3 {[%clk 0:03:00.9]} 1... Nf6 {[%clk 0:02:53.3]} 2. c4 {[%clk 0:03:01.2]}
2... e6 {[%clk 0:02:49.8]} 3. g3 {[%clk 0:03:01.2]} 3... b6 {[%clk 0:02:49.1]}
4. Bg2 {[%clk 0:03:02.1]} 4... Bb7 {[%clk 0:02:49.6]} 5. O-O {[%clk 0:03:02.5]}
5... c5 {[%clk 0:02:47.2]} 6. b3 {[%clk 0:03:02.2]} 6... Be7 {[%clk 0:02:46.7]}
7. Bb2 {[%clk 0:03:02.7]} 7... O-O {[%clk 0:02:47.4]} 8. Nc3 {[%clk 0:03:02.8]}
8... a6 {[%clk 0:02:47.8]} 9. e3 {[%clk 0:03:03.2]} 9... d6 {[%clk 0:02:48]} 10.
Qe2 {[%clk 0:03:03.4]} 10... Re8 {[%clk 0:02:47.7]} 11. Rad1 {[%clk 0:03:02.6]}
11... Nbd7 {[%clk 0:02:32.4]} 12. Ne1 {[%clk 0:03:01]} 12... Bxg2 {[%clk
0:02:31.4]} 13. Nxg2 {[%clk 0:03:01.9]} 13... Qc7 {[%clk 0:02:24]} 14. f4 {[%clk
0:03:01.1]} 14... d5 {[%clk 0:01:59.1]} 15. g4 {[%clk 0:02:53.2]} 15... d4
{[%clk 0:01:01.9]} 16. exd4 {[%clk 0:02:54.1]} 16... cxd4 {[%clk 0:01:02]} 17.
Ne4 {[%clk 0:02:54.1]} 17... Nxe4 {[%clk 0:01:01.2]} 18. Qxe4 {[%clk 0:02:55]}
18... Nf6 {[%clk 0:00:54.8]} 19. Qf3 {[%clk 0:02:36.8]} 19... Bc5 {[%clk
0:00:43.5]} 20. d3 {[%clk 0:02:36.2]} 20... a5 {[%clk 0:00:40.1]} 21. f5 {[%clk
0:02:17.2]} 21... exf5 {[%clk 0:00:30.5]} 22. Qxf5 {[%clk 0:02:16.9]} 22... Re5
{[%clk 0:00:29.9]} 23. Qf3 {[%clk 0:02:11.2]} 23... Rae8 {[%clk 0:00:26]} 24.
Bc1 {[%clk 0:02:10.5]} 24... Qd7 {[%clk 0:00:12.5]} 25. h3 {[%clk 0:02:00.6]}
25... Re2 {[%clk 0:00:09.8]} 26. Bg5 {[%clk 0:01:59.1]} 26... Rxa2 {[%clk
0:00:07.5]} 27. Bxf6 {[%clk 0:01:53.9]} 27... gxf6 {[%clk 0:00:07.9]} 28. Nf4
{[%clk 0:01:53.4]} 28... Re3 {[%clk 0:00:07.6]} 29. Qa8+ {[%clk 0:01:49.8]}
29... Qe8 {[%clk 0:00:07.7]} 30. Qxe8+ {[%clk 0:01:47.9]} 30... Rxe8 {[%clk
0:00:08.6]} 31. Rf2 {[%clk 0:01:38.4]} 31... Rxf2 {[%clk 0:00:05.4]} 32. Kxf2
{[%clk 0:01:39.3]} 32... Re3 {[%clk 0:00:05.8]} 33. Nd5 {[%clk 0:01:24.9]} 33...
Rxh3 {[%clk 0:00:05.7]} 34. Kg2 {[%clk 0:01:25.5]} 34... Rh4 {[%clk 0:00:04.7]}
35. Kg3 {[%clk 0:01:23.5]} 35... Rh6 {[%clk 0:00:05.2]} 36. Re1 {[%clk
0:01:21.8]} 36... Kg7 {[%clk 0:00:05.9]} 37. Re8 {[%clk 0:01:15.8]} 37... Rg6
{[%clk 0:00:06.4]} 38. Kf3 {[%clk 0:01:10.3]} 38... h5 {[%clk 0:00:06.3]} 39.
gxh5 {[%clk 0:01:08.7]} 39... Rg5 {[%clk 0:00:06.7]} 40. Nf4 {[%clk 0:00:50.1]}
40... Rg1 {[%clk 0:00:06.8]} 41. Ne2 {[%clk 0:00:34.6]} 41... Rb1 {[%clk
0:00:06.6]} 42. Ke4 {[%clk 0:00:34]} 42... Rxb3 {[%clk 0:00:06.9]} 43. Nxd4
{[%clk 0:00:34.6]} 43... Rb1 {[%clk 0:00:05.1]} 44. Nf5+ {[%clk 0:00:34.5]}
44... Kh7 {[%clk 0:00:04.3]} 45. Ra8 {[%clk 0:00:32.9]} 45... Re1+ {[%clk
0:00:03.9]} 46. Kf3 {[%clk 0:00:32.2]} 46... Rf1+ {[%clk 0:00:04.5]} 47. Kg4
{[%clk 0:00:32.8]} 47... Rd1 {[%clk 0:00:04.6]} 48. Ra7 {[%clk 0:00:27.3]} 48...
Rg1+ {[%clk 0:00:02.9]} 49. Kf3 {[%clk 0:00:25.8]} 49... Rf1+ {[%clk 0:00:03.3]}
50. Kg4 {[%clk 0:00:26.4]} 50... Rg1+ {[%clk 0:00:03.7]} 51. Kh3 {[%clk
0:00:27]} 51... Rh1+ {[%clk 0:00:03.6]} 52. Kg2 {[%clk 0:00:21.1]} 52... Rxh5
{[%clk 0:00:02.2]} 53. Ng3 {[%clk 0:00:21.6]} 53... Rg5 {[%clk 0:00:02.6]} 54.
Rxf7+ {[%clk 0:00:21.7]} 54... Kg6 {[%clk 0:00:03]} 55. Rd7 {[%clk 0:00:22.4]}
55... Re5 {[%clk 0:00:01.9]} 56. d4 {[%clk 0:00:22]} 56... Bxd4 {[%clk
0:00:01.2]} 57. Rxd4 {[%clk 0:00:22.9]} 57... b5 {[%clk 0:00:02.1]} 58. cxb5
{[%clk 0:00:19.9]} 58... Rxb5 {[%clk 0:00:03]} 59. Ra4 {[%clk 0:00:20.8]} 59...
Rb2+ {[%clk 0:00:02.9]} 60. Kf3 {[%clk 0:00:20.8]} 60... Rb5 {[%clk 0:00:03.6]}
61. Ne4 {[%clk 0:00:20.7]} 61... Rb3+ {[%clk 0:00:04.2]} 62. Ke2 {[%clk
0:00:13.8]} 62... Rb4 {[%clk 0:00:03.9]} 63. Rxb4 {[%clk 0:00:12.6]} 63... axb4
{[%clk 0:00:04.5]} 64. Nxf6 {[%clk 0:00:13.5]} 64... Kxf6 {[%clk 0:00:04.9]} 65.
Kd3 {[%clk 0:00:14.4]} 65... Ke5 {[%clk 0:00:05.4]} 66. Kc4 {[%clk 0:00:14.9]}
66... Ke4 {[%clk 0:00:06]} 67. Kxb4 {[%clk 0:00:15.4]} 1/2-1/2

[Event "*** SCC Grand Prix: Titled Tuesday Blitz"]
[Site "Chess.com"]
[Date "2020.06.02"]
[Round "5"]
[White "MasterKroket"]
[Black "MarcoRiehle"]
[Result "0-1"]
[WhiteElo "2420"]
[BlackElo "2625"]
[TimeControl "180+1"]
[EndTime "11:00:16 PDT"]
[Termination "MarcoRiehle won on time"]

1. d4 {[%clk 0:03:00.9]} 1... d5 {[%clk 0:02:59.7]} 2. c4 {[%clk 0:03:00.9]}
2... e6 {[%clk 0:02:53.9]} 3. Nc3 {[%clk 0:02:58.5]} 3... c5 {[%clk 0:02:47.8]}
4. cxd5 {[%clk 0:02:56.2]} 4... cxd4 {[%clk 0:02:38.7]} 5. Qa4+ {[%clk
0:02:49.7]} 5... Bd7 {[%clk 0:02:38]} 6. Qxd4 {[%clk 0:02:49.7]} 6... exd5
{[%clk 0:02:38.1]} 7. Nxd5 {[%clk 0:02:46.2]} 7... Nc6 {[%clk 0:02:33.7]} 8. Qd1
{[%clk 0:02:31.6]} 8... Nf6 {[%clk 0:02:33.2]} 9. Nc3 {[%clk 0:02:16]} 9... Bc5
{[%clk 0:02:31.3]} 10. Nf3 {[%clk 0:02:13.4]} 10... Qe7 {[%clk 0:02:30.9]} 11.
e3 {[%clk 0:02:10.8]} 11... O-O-O {[%clk 0:02:30.7]} 12. Bd2 {[%clk 0:02:04.1]}
12... g5 {[%clk 0:02:28.8]} 13. Nxg5 {[%clk 0:01:51.3]} 13... Rhg8 {[%clk
0:02:26.2]} 14. Nf3 {[%clk 0:01:44.2]} 14... Kb8 {[%clk 0:02:20.9]} 15. a3
{[%clk 0:01:33.1]} 15... h5 {[%clk 0:02:19]} 16. Qc2 {[%clk 0:01:31.6]} 16...
Ng4 {[%clk 0:02:12.4]} 17. h3 {[%clk 0:01:21.1]} 17... Nge5 {[%clk 0:02:11.6]}
18. Nxe5 {[%clk 0:01:08.5]} 18... Qxe5 {[%clk 0:02:12.5]} 19. Na4 {[%clk
0:00:56.5]} 19... Be7 {[%clk 0:01:44.8]} 20. Bc3 {[%clk 0:00:55.3]} 20... Qd5
{[%clk 0:01:36.9]} 21. Rd1 {[%clk 0:00:53.2]} 21... Qg5 {[%clk 0:01:33.2]} 22.
Qe4 {[%clk 0:00:36.5]} 22... Rge8 {[%clk 0:01:17.8]} 23. Be2 {[%clk 0:00:28.1]}
23... Bd6 {[%clk 0:01:05.8]} 24. Qf3 {[%clk 0:00:21.9]} 24... Bc7 {[%clk
0:01:04.4]} 25. Rd5 {[%clk 0:00:20.8]} 25... Qg6 {[%clk 0:01:01.2]} 26. Nc5
{[%clk 0:00:19.3]} 26... Bc8 {[%clk 0:00:55.3]} 27. Rxd8 {[%clk 0:00:18.9]}
27... Rxd8 {[%clk 0:00:54.9]} 28. O-O {[%clk 0:00:18]} 28... Qd6 {[%clk
0:00:54.2]} 29. Na6+ {[%clk 0:00:14.7]} 29... bxa6 {[%clk 0:00:53.2]} 30. g3
{[%clk 0:00:14.4]} 30... Bb7 {[%clk 0:00:52]} 31. Rd1 {[%clk 0:00:14.6]} 31...
Qe7 {[%clk 0:00:45.3]} 32. Rxd8+ {[%clk 0:00:14.8]} 32... Bxd8 {[%clk
0:00:45.5]} 33. Qxh5 {[%clk 0:00:15.4]} 33... Qe4 {[%clk 0:00:42.3]} 34. Bf3
{[%clk 0:00:15.1]} 34... Qb1+ {[%clk 0:00:41.9]} 35. Kg2 {[%clk 0:00:15.7]}
35... Qd3 {[%clk 0:00:32.9]} 36. Qxf7 {[%clk 0:00:13.8]} 36... a5 {[%clk
0:00:29.4]} 37. Qd5 {[%clk 0:00:13.2]} 37... Qh7 {[%clk 0:00:24.3]} 38. Qc5
{[%clk 0:00:12.1]} 38... Qd7 {[%clk 0:00:17.9]} 39. h4 {[%clk 0:00:10.4]} 39...
Ne7 {[%clk 0:00:15.8]} 40. Be5+ {[%clk 0:00:10]} 40... Ka8 {[%clk 0:00:14.8]}
41. Qd6 {[%clk 0:00:09.2]} 41... Bxf3+ {[%clk 0:00:13.9]} 42. Kxf3 {[%clk
0:00:09.7]} 42... Qf5+ {[%clk 0:00:13.9]} 43. Kg2 {[%clk 0:00:09.7]} 43... Qc8
{[%clk 0:00:13.6]} 44. h5 {[%clk 0:00:08.6]} 44... Nf5 {[%clk 0:00:13.2]} 45.
Qd5+ {[%clk 0:00:07.8]} 45... Qb7 {[%clk 0:00:13.6]} 46. Qxb7+ {[%clk
0:00:08.4]} 46... Kxb7 {[%clk 0:00:14.5]} 47. g4 {[%clk 0:00:09]} 47... Nh6
{[%clk 0:00:14.2]} 48. f3 {[%clk 0:00:08.9]} 48... Kc6 {[%clk 0:00:14.5]} 49.
Bf4 {[%clk 0:00:09.2]} 49... Nf7 {[%clk 0:00:14.4]} 50. h6 {[%clk 0:00:09.2]}
50... Kd5 {[%clk 0:00:13.7]} 51. h7 {[%clk 0:00:09.7]} 51... Bf6 {[%clk
0:00:14.1]} 52. g5 {[%clk 0:00:09.3]} 52... Bxb2 {[%clk 0:00:13.4]} 53. g6
{[%clk 0:00:09.3]} 53... Nh8 {[%clk 0:00:13.7]} 54. e4+ {[%clk 0:00:08.4]} 54...
Ke6 {[%clk 0:00:13.2]} 55. Bd2 {[%clk 0:00:06.9]} 55... a4 {[%clk 0:00:12]} 56.
f4 {[%clk 0:00:07.3]} 56... Nxg6 {[%clk 0:00:09.6]} 57. f5+ {[%clk 0:00:07.9]}
57... Kf7 {[%clk 0:00:10.2]} 58. fxg6+ {[%clk 0:00:06.6]} 58... Kxg6 {[%clk
0:00:11.1]} 59. Kf3 {[%clk 0:00:06.7]} 59... Kxh7 {[%clk 0:00:10.9]} 60. Bb4
{[%clk 0:00:06.6]} 60... Kg6 {[%clk 0:00:11.2]} 61. Kf4 {[%clk 0:00:07.1]} 61...
Kf6 {[%clk 0:00:11.8]} 62. Bd6 {[%clk 0:00:07.2]} 62... Ke6 {[%clk 0:00:11.9]}
63. Bb4 {[%clk 0:00:07.5]} 63... a6 {[%clk 0:00:11.4]} 64. Ke3 {[%clk
0:00:06.3]} 64... Ke5 {[%clk 0:00:11.3]} 65. Bf8 {[%clk 0:00:06.3]} 65... Ke6
{[%clk 0:00:11.2]} 66. Kd3 {[%clk 0:00:06.8]} 66... Kd7 {[%clk 0:00:11]} 67. Bb4
{[%clk 0:00:06.9]} 67... Kc6 {[%clk 0:00:11.2]} 68. Kc4 {[%clk 0:00:07.2]} 68...
Be5 {[%clk 0:00:11]} 69. Bc3 {[%clk 0:00:05.8]} 69... Bd6 {[%clk 0:00:10.9]} 70.
Bb2 {[%clk 0:00:06]} 70... Be7 {[%clk 0:00:11]} 71. e5 {[%clk 0:00:04.9]} 71...
Bf8 {[%clk 0:00:11.3]} 72. Kd4 {[%clk 0:00:04]} 72... Be7 {[%clk 0:00:10.2]} 73.
Ke4 {[%clk 0:00:04.5]} 73... Kc5 {[%clk 0:00:10.7]} 74. Bc3 {[%clk 0:00:02.3]}
74... Kc4 {[%clk 0:00:10.6]} 75. Bb4 {[%clk 0:00:01.2]} 75... Bxb4 {[%clk
0:00:09.8]} 76. axb4 {[%clk 0:00:02.1]} 76... a3 {[%clk 0:00:10.4]} 77. e6
{[%clk 0:00:02.9]} 77... a2 {[%clk 0:00:11]} 0-1